[Event "ESP-ch Seniors 2017"]
[Site "Altea"]
[Date "2017.10.08"]
[Round "2"]
[White "Celaya Tapiz, Jose Maria"]
[Black "Tejero Royo, Fermin"]
[Result "1-0"]
[ECO "C71"]
[WhiteElo "2196"]
[BlackElo "1998"]
[Annotator "ChessBase"]
[PlyCount "131"]
[EventDate "2017.??.??"]
[EventType "swiss"]
[EventCountry "ESP"]
[SourceTitle "playchess.com"]
[Source "ChessBase"]
[SourceQuality "1"]
[TimeControl "5400+30"]

1. e4 {[%emt 0:00:16]} e5 {[%emt 0:00:07]} 2. Nf3 {[%emt 0:00:10]} Nc6 {[%emt 0:00:09]} 3. Bb5 {[%emt 0:00:07]} a6 {[%emt 0:00:12]} 4. Ba4 {[%emt 0:00:13]} d6 {[%emt 0:00:20]} 5. h3 {[%emt 0:00:25]} Bd7 {[%emt 0:00:42]} 6. O-O {[%emt 0:00:11]} g6 {[%emt 0:00:45]} 7. c3 {[%emt 0:00:11]} Bg7 {[%emt 0:00:30]} 8. Bc2 {[%emt 0:00:15]} Nf6 {[%emt 0:01:02]} 9. d4 {[%emt 0:00:35]} O-O {[%emt 0:00:32]} 10. dxe5 {[%emt 0:00:35]} Nxe5 {[%emt 0:00:27]} 11. Nxe5 {[%emt 0:01:26]} dxe5 {[%emt 0:00:08]} 12. Nd2 {[%emt 0:01:02]} Bc6 {[%emt 0:01:27]} 13. Re1 {[%emt 0:00:27]} Nh5 {[%emt 0:00:53]} 14. Nf1 Qxd1 {[%emt 0:07:03]} 15. Rxd1 {[%emt 0:02:41]} Nf4 {[%emt 0:00:44]} 16. h4 {[%emt 0:02:10]} Ne2+ {[%emt 0:04:01]} 17. Kh2 {[%emt 0:00:24]} Nxc1 {[%emt 0:00:17]} 18. Raxc1 {[%emt 0:00:13]} Bh6 {[%emt 0:01:15]} 19. Ra1 {[%emt 0:00:11]} Rad8 {[%emt 0:03:37]} 20. f3 {[%emt 0:00:13]} Rfe8 {[%emt 0:01:04]} 21. g3 {[%emt 0:00:49]} Kf8 {[%emt 0:01:18]} 22. Kg2 {[%emt 0:00:13]} Ke7 {[%emt 0:00:32]} 23. Kf2 {[%emt 0:00:10]} Rd7 {[%emt 0:03:10]} 24. Rxd7+ {[%emt 0:00:31]} Bxd7 {[%emt 0:00:13]} 25. Bb3 {[%emt 0:00:19]} Bc6 {[%emt 0:13:15]} 26. Rd1 {[%emt 0:00:18]} f5 {[%emt 0:01:03]} 27. exf5 {[%emt 0:13:48]} gxf5 {[%emt 0:00:41]} 28. Ne3 {[%emt 0:00:25]} Bxe3+ {[%emt 0:05:49]} 29. Kxe3 {[%emt 0:00:12]} f4+ {[%emt 0:00:11]} 30. gxf4 {[%emt 0:08:40]} exf4+ {[%emt 0:00:16]} 31. Kxf4 {[%emt 0:00:18]} Rf8+ {[%emt 0:00:13]} 32. Kg5 {[%emt 0:00:31]} Rxf3 {[%emt 0:01:10]} 33. Rd2 {[%emt 0:00:40]} Be8 {[%emt 0:09:25]} 34. Bd5 {[%emt 0:01:18]} Rg3+ {[%emt 0:00:39]} 35. Kf4 {[%emt 0:00:22]} Rh3 {[%emt 0:00:18]} 36. Bxb7 {[%emt 0:00:26]} Rxh4+ {[%emt 0:00:26]} 37. Kg3 {[%emt 0:01:25]} Rh6 {[%emt 0:00:34]} 38. Bf3 {[%emt 0:00:56]} Bf7 {[%emt 0:02:09]} 39. a3 {[%emt 0:01:08]} Rf6 {[%emt 0:00:53]} 40. Bg4 {[%emt 0:00:48]} Be6 {[%emt 0:02:15]} 41. Bf3 {[%emt 0:01:35]} Bf5 {[%emt 0:02:36]} 42. Bh5 {[%emt 0:03:47]} Rd6 {[%emt 0:01:42]} 43. Rf2 {[%emt 0:03:32]} Rf6 {[%emt 0:01:59]} 44. Rd2 {[%emt 0:00:26]} Rd6 {[%emt 0:00:47]} 45. Rf2 {[%emt 0:03:29]} Rf6 {[%emt 0:00:12]} 46. Be2 {[%emt 0:01:34]} a5 {[%emt 0:03:32]} 47. Rh2 {[%emt 0:01:24]} Rb6 {[%emt 0:01:02]} 48. Bh5 {[%emt 0:00:38]} Kf6 {[%emt 0:02:25]} 49. Kf4 {[%emt 0:01:04]} Re6 {[%emt 0:04:57]} 50. Bf3 {[%emt 0:00:20]} Bg6 {[%emt 0:01:44]} 51. Rd2 {[%emt 0:00:12]} Re5 {[%emt 0:01:39]} 52. b4 {[%emt 0:02:05]} Be8 {[%emt 0:02:38]} 53. Rd8 {[%emt 0:02:47]} Rf5+ {[%emt 0:02:44]} 54. Ke3 {[%emt 0:00:34]} Ke7 {[%emt 0:00:07]} 55. Rc8 {[%emt 0:01:05]} axb4 {[%emt 0:01:01]} 56. cxb4 {[%emt 0:01:01]} c5 {[%emt 0:00:54]} 57. Rxc5 {[%emt 0:01:37]} Rxc5 {[%emt 0:01:46]} 58. bxc5 {[%emt 0:00:01]} Bb5 {[%emt 0:01:21]} 59. Kd4 {[%emt 0:00:07]} Kd8 {[%emt 0:00:23]} 60. Bd1 {[%emt 0:02:27]} Kc7 {[%emt 0:00:51]} 61. a4 {[%emt 0:02:27]} Be8 {[%emt 0:00:54]} 62. a5 {[%emt 0:00:04]} h5 {[%emt 0:00:43]} 63. Bf3 {[%emt 0:00:18]} h4 {[%emt 0:00:30]} 64. a6 {[%emt 0:01:30]} Bc6 {[%emt 0:01:54]} 65. Bxc6 {[%emt 0:00:28]} Kxc6 {[%emt 0:00:05]} 66. Ke4 {Kd5+} 1-0

[Event "ESP-ch Seniors 2017"]
[Site "Altea"]
[Date "2017.10.08"]
[Round "2"]
[White "Riquelme Valero, Manuel Damian"]
[Black "Castellanos Bogalo, Antonio"]
[Result "1-0"]
[ECO "A51"]
[WhiteElo "2147"]
[BlackElo "2006"]
[Annotator "ChessBase"]
[PlyCount "75"]
[EventDate "2017.??.??"]
[EventType "swiss"]
[EventCountry "ESP"]
[SourceTitle "playchess.com"]
[Source "ChessBase"]
[SourceQuality "1"]
[TimeControl "5400+30"]

1. d4 {[%emt 0:00:00]} Nf6 {[%emt 0:01:45]} 2. c4 {[%emt 0:00:00]} e5 {[%emt 0:00:08]} 3. dxe5 {[%emt 0:01:41]} Ne4 {[%emt 0:00:09]} 4. Nd2 {[%emt 0:02:42]} Nc5 {[%emt 0:02:32]} 5. Ngf3 {[%emt 0:01:06]} Nc6 {[%emt 0:00:17]} 6. Nb3 {[%emt 0:02:30]} Ne6 {[%emt 0:05:53]} 7. Bd2 {[%emt 0:01:19]} a5 {[%emt 0:01:02]} 8. e3 {[%emt 0:03:50]} b6 {[%emt 0:04:49]} 9. Be2 {[%emt 0:03:46]} Bb7 {[%emt 0:00:29]} 10. O-O {[%emt 0:00:55]} g5 {[%emt 0:04:33]} 11. Bc3 {[%emt 0:08:00]} Rg8 {[%emt 0:09:25]} 12. Nfd4 {[%emt 0:05:38]} g4 {[%emt 0:10:18]} 13. Nxe6 {[%emt 0:09:14]} dxe6 {[%emt 0:02:46]} 14. Qxd8+ {[%emt 0:04:13]} Rxd8 {[%emt 0:01:10]} 15. Rad1 {[%emt 0:00:36]} Be7 {[%emt 0:16:21]} 16. Bd3 {[%emt 0:11:38]} h5 {[%emt 0:03:49]} 17. Be4 {[%emt 0:00:41]} Rg5 {[%emt 0:07:08]} 18. Nc1 {[%emt 0:13:10]} Rb8 {[%emt 0:06:54]} 19. Nd3 {[%emt 0:05:41]} Nd8 {[%emt 0:02:04]} 20. Bxb7 {[%emt 0:00:26]} Rxb7 {[%emt 0:00:43]} 21. Rd2 {[%emt 0:01:50]} c5 {[%emt 0:02:02]} 22. Rfd1 {[%emt 0:02:34]} Nc6 {[%emt 0:00:29]} 23. a4 {[%emt 0:00:25]} Rd7 {[%emt 0:00:52]} 24. Kf1 {[%emt 0:00:12]} Bd8 {[%emt 0:04:28]} 25. f4 {[%emt 0:01:17]} gxf3 {[%emt 0:01:38]} 26. gxf3 {[%emt 0:00:19]} Bc7 {[%emt 0:00:45]} 27. f4 {[%emt 0:00:10]} Rg6 {[%emt 0:01:04]} 28. Nf2 {[%emt 0:01:15]} Rxd2 {[%emt 0:02:41]} 29. Rxd2 {[%emt 0:00:22]} Nb8 {[%emt 0:04:08]} 30. Ne4 {[%emt 0:01:32]} Nd7 {[%emt 0:00:20]} 31. Rg2 {[%emt 0:01:23]} Ke7 {[%emt 0:03:24]} 32. Be1 {[%emt 0:01:43]} Kf8 {[%emt 0:01:02]} 33. Bh4 {[%emt 0:00:39]} Kg7 {[%emt 0:00:43]} 34. Bg5 {[%emt 0:00:46]} Kh7 {[%emt 0:00:41]} 35. Rg3 {[%emt 0:02:02]} Kg7 {[%emt 0:00:46]} 36. Rh3 {[%emt 0:00:28]} Nf8 {[%emt 0:00:31]} 37. Bf6+ {[%emt 0:00:58]} Kh7 {[%emt 0:00:40]} 38. Ng5+ {[%emt 0:00:30]} 1-0

[Event "ESP-ch Seniors 2017"]
[Site "Altea"]
[Date "2017.10.08"]
[Round "2"]
[White "Dominguez Rueda, Juan"]
[Black "Lopez Colon, Francisco"]
[Result "1-0"]
[ECO "B52"]
[WhiteElo "2135"]
[BlackElo "1938"]
[Annotator "ChessBase"]
[PlyCount "97"]
[EventDate "2017.??.??"]
[EventType "swiss"]
[EventCountry "ESP"]
[SourceTitle "playchess.com"]
[Source "ChessBase"]
[SourceQuality "1"]
[TimeControl "5400+30"]

1. e4 {[%emt 0:00:00]} c5 {[%emt 0:01:09]} 2. Nf3 {[%emt 0:00:09]} d6 {[%emt 0:00:06]} 3. Bb5+ {[%emt 0:00:19]} Bd7 {[%emt 0:00:40]} 4. Bxd7+ {[%emt 0:00:08]} Qxd7 {[%emt 0:01:04]} 5. O-O {[%emt 0:00:10]} Nc6 {[%emt 0:04:24]} 6. c3 {[%emt 0:00:20]} Nf6 {[%emt 0:04:54]} 7. Re1 {[%emt 0:00:21]} e5 {[%emt 0:00:22]} 8. d4 {[%emt 0:00:40]} Be7 {[%emt 0:05:41]} 9. Nbd2 {[%emt 0:03:17]} cxd4 {[%emt 0:05:55]} 10. cxd4 {[%emt 0:00:21]} exd4 {[%emt 0:00:08]} 11. Nb3 {[%emt 0:08:08]} O-O {[%emt 0:00:37]} 12. Nbxd4 {[%emt 0:00:17]} Nxd4 {[%emt 0:03:38]} 13. Qxd4 {[%emt 0:05:23]} Rfd8 {[%emt 0:06:01]} 14. Bg5 {[%emt 0:05:20]} h6 {[%emt 0:05:23]} 15. Bh4 {[%emt 0:01:14]} Nh5 {[%emt 0:12:28]} 16. Rad1 {[%emt 0:13:47]} Qe6 {[%emt 0:05:40]} 17. Bxe7 {[%emt 0:03:58]} Qxe7 {[%emt 0:00:01]} 18. Rd2 {[%emt 0:08:29]} Nf6 {[%emt 0:01:28]} 19. h3 {[%emt 0:01:47]} Qe6 {[%emt 0:07:39]} 20. a3 {[%emt 0:05:30]} Rd7 {[%emt 0:03:17]} 21. Rde2 {[%emt 0:04:03]} b6 {[%emt 0:03:06]} 22. Rc2 {[%emt 0:06:10]} Re8 {[%emt 0:03:27]} 23. Rc6 {[%emt 0:05:23]} Qe7 {[%emt 0:03:13]} 24. b4 {[%emt 0:02:51]} Qd8 {[%emt 0:05:19]} 25. Nd2 {[%emt 0:03:55]} Re6 {[%emt 0:02:11]} 26. b5 {[%emt 0:01:13]} Qe7 {[%emt 0:00:37]} 27. Re3 {[%emt 0:05:10]} Re5 {[%emt 0:01:11]} 28. Rc8+ {[%emt 0:02:28]} Kh7 {[%emt 0:01:44]} 29. f4 {[%emt 0:03:06]} Rc5 {[%emt 0:02:38]} 30. Rc6 {[%emt 0:02:45]} g6 {[%emt 0:00:02]} 31. a4 {[%emt 0:00:24]} Ne8 {[%emt 0:03:16]} 32. Rd3 {[%emt 0:02:20]} Rc7 {[%emt 0:01:33]} 33. Rxc5 {[%emt 0:02:37]} bxc5 {[%emt 0:01:55]} 34. Qc4 {[%emt 0:01:27]} Qe6 {[%emt 0:00:25]} 35. a5 {[%emt 0:00:07]} Rb7 {[%emt 0:00:49]} 36. Rb3 {[%emt 0:00:27]} Nc7 {[%emt 0:01:32]} 37. b6 {[%emt 0:00:28]} axb6 {[%emt 0:00:52]} 38. axb6 {[%emt 0:00:30]} Qxc4 {[%emt 0:01:21]} 39. Nxc4 {[%emt 0:00:02]} Na8 {[%emt 0:00:01]} 40. Ra3 {[%emt 0:01:25]} Nxb6 {[%emt 0:00:39]} 41. Rb3 {[%emt 0:00:06]} Nxc4 {[%emt 0:00:10]} 42. Rxb7 {[%emt 0:00:05]} Kg7 {[%emt 0:00:07]} 43. Kf2 {[%emt 0:00:21]} Kf6 {[%emt 0:00:12]} 44. Ke2 {[%emt 0:00:20]} g5 {[%emt 0:02:14]} 45. g3 {[%emt 0:00:03]} gxf4 {[%emt 0:01:20]} 46. gxf4 {[%emt 0:00:02]} Na5 {[%emt 0:00:15]} 47. Rb5 {[%emt 0:02:24]} Nc6 {[%emt 0:00:12]} 48. e5+ {[%emt 0:01:00]} dxe5 {[%emt 0:00:48]} 49. Rb6 {[%emt 0:00:09]} 1-0

[Event "ESP-ch Seniors 2017"]
[Site "Altea"]
[Date "2017.10.08"]
[Round "2"]
[White "Bautista Sanchez, Joan"]
[Black "Barcena Laguia, Francisco"]
[Result "1-0"]
[ECO "A06"]
[WhiteElo "2123"]
[BlackElo "1874"]
[Annotator "ChessBase"]
[PlyCount "95"]
[EventDate "2017.??.??"]
[EventType "swiss"]
[EventCountry "ESP"]
[SourceTitle "playchess.com"]
[Source "ChessBase"]
[SourceQuality "1"]
[TimeControl "5400+30"]

1. Nf3 {[%emt 0:00:00]} d5 {[%emt 0:00:30]} 2. c4 {[%emt 0:00:00]} c6 {[%emt 0:01:28]} 3. e3 {[%emt 0:01:54]} e6 {[%emt 0:01:13]} 4. b3 {[%emt 0:00:48]} f5 {[%emt 0:02:37]} 5. Bb2 {[%emt 0:00:47]} Nf6 {[%emt 0:00:25]} 6. Be2 {[%emt 0:00:44]} Bd6 {[%emt 0:00:58]} 7. O-O {[%emt 0:00:46]} O-O {[%emt 0:00:10]} 8. Ne5 {[%emt 0:02:10]} Nbd7 {[%emt 0:01:00]} 9. f4 {[%emt 0:04:12]} Qc7 {[%emt 0:04:40]} 10. d4 {[%emt 0:04:01]} Ne4 {[%emt 0:03:17]} 11. Nc3 {[%emt 0:02:39]} Ndf6 {[%emt 0:02:10]} 12. Rc1 {[%emt 0:00:48]} Qd8 {[%emt 0:01:39]} 13. Bf3 {[%emt 0:03:53]} Bd7 {[%emt 0:07:45]} 14. Rc2 {[%emt 0:01:16]} Be8 {[%emt 0:00:57]} 15. g4 {[%emt 0:05:32]} fxg4 {[%emt 0:07:08]} 16. Bxg4 {[%emt 0:00:52]} Nxg4 {[%emt 0:00:38]} 17. Qxg4 {[%emt 0:00:27]} Rf6 {[%emt 0:00:19]} 18. Nxe4 {[%emt 0:01:06]} dxe4 {[%emt 0:00:22]} 19. Rg2 {[%emt 0:01:02]} Qe7 {[%emt 0:05:24]} 20. Rd1 {[%emt 0:20:04]} Bxe5 {[%emt 0:04:46]} 21. fxe5 {[%emt 0:01:10]} Rf5 {[%emt 0:05:06]} 22. Ba3 {[%emt 0:03:01]} Qf7 {[%emt 0:04:41]} 23. Qxe4 {[%emt 0:11:49]} Qh5 {[%emt 0:02:09]} 24. Re1 {[%emt 0:02:48]} Bg6 {[%emt 0:01:27]} 25. Qg4 {[%emt 0:00:28]} Rd8 {[%emt 0:11:41]} 26. Qxh5 {[%emt 0:06:35]} Bxh5 {[%emt 0:03:45]} 27. Rf1 {[%emt 0:03:56]} Rxf1+ {[%emt 0:01:11]} 28. Kxf1 {[%emt 0:00:01]} Rd7 {[%emt 0:00:21]} 29. Bc5 {[%emt 0:04:57]} a6 {[%emt 0:04:48]} 30. Ke1 {[%emt 0:04:02]} Rf7 {[%emt 0:02:25]} 31. Kd2 {[%emt 0:01:44]} Rf3 {[%emt 0:06:30]} 32. Be7 {[%emt 0:02:06]} Kf7 {[%emt 0:00:30]} 33. Bh4 {[%emt 0:00:55]} Bg6 {[%emt 0:00:35]} 34. a4 {[%emt 0:02:36]} Be4 {[%emt 0:06:28]} 35. Rg4 {[%emt 0:02:21]} Bf5 {[%emt 0:03:49]} 36. Rg1 {[%emt 0:00:10]} h5 {[%emt 0:01:25]} 37. Rg2 {[%emt 0:02:26]} Bb1 {[%emt 0:00:54]} 38. Bg5 {[%emt 0:00:48]} Ba2 {[%emt 0:00:26]} 39. Kc3 {[%emt 0:00:17]} Bb1 {[%emt 0:00:20]} 40. h4 {[%emt 0:00:10]} Be4 {[%emt 0:00:13]} 41. Rh2 {[%emt 0:00:14]} Bf5 {[%emt 0:00:36]} 42. Kb4 {[%emt 0:00:07]} b6 {[%emt 0:00:27]} 43. a5 {[%emt 0:00:26]} b5 {[%emt 0:00:36]} 44. Kc5 {[%emt 0:00:28]} Bd3 {[%emt 0:00:26]} 45. Rd2 {[%emt 0:00:23]} Be4 {[%emt 0:00:54]} 46. Kb6 {[%emt 0:00:18]} Ke8 {[%emt 0:00:27]} 47. Kxa6 {[%emt 0:00:17]} Rf7 {[%emt 0:00:17]} 48. Kb6 {[%emt 0:00:57]} 1-0

[Event "ESP-ch Seniors 2017"]
[Site "Altea"]
[Date "2017.10.08"]
[Round "2"]
[White "Ruiz Ledo, Antonio"]
[Black "Garcia Fernandez, Carlos"]
[Result "1/2-1/2"]
[ECO "A04"]
[WhiteElo "2045"]
[BlackElo "2264"]
[Annotator "ChessBase"]
[PlyCount "34"]
[EventDate "2017.??.??"]
[EventType "swiss"]
[EventCountry "ESP"]
[SourceTitle "playchess.com"]
[Source "ChessBase"]
[SourceQuality "1"]
[TimeControl "5400+30"]

1. Nf3 {[%emt 0:02:18]} d6 {[%emt 0:07:35]} 2. g3 {[%emt 0:01:05]} e5 3. Bg2 {[%emt 0:03:03]} f5 {[%emt 0:01:19]} 4. c4 Nf6 {[%emt 0:00:30]} 5. Nc3 {[%emt 0:00:54]} g6 6. O-O {[%emt 0:05:38]} Bg7 {[%emt 0:00:44]} 7. d4 {[%emt 0:00:12]} e4 {[%emt 0:00:26]} 8. Ne1 {[%emt 0:03:51]} c6 9. f3 {[%emt 0:02:57]} exf3 {[%emt 0:02:43]} 10. Bxf3 {[%emt 0:06:47]} O-O {[%emt 0:04:37]} 11. Nc2 {[%emt 0:08:10]} Na6 {[%emt 0:00:49]} 12. Bf4 {[%emt 0:01:28]} h6 {[%emt 0:00:40]} 13. h4 {[%emt 0:08:42]} Kh7 {[%emt 0:02:01]} 14. Qd2 {[%emt 0:02:19]} d5 {[%emt 0:02:36]} 15. cxd5 Nxd5 {[%emt 0:00:06]} 16. Nxd5 {[%emt 0:04:31]} cxd5 {[%emt 0:01:48]} 17. Rfd1 {[%emt 0:11:19]} Be6 1/2-1/2

[Event "ESP-ch Seniors 2017"]
[Site "Altea"]
[Date "2017.10.08"]
[Round "2"]
[White "Serrano Marhuenda, Salvador"]
[Black "Brusi Noguera, Ricardo Ll"]
[Result "1-0"]
[ECO "B02"]
[WhiteElo "2012"]
[BlackElo "2156"]
[Annotator "ChessBase"]
[PlyCount "161"]
[EventDate "2017.??.??"]
[EventType "swiss"]
[EventCountry "ESP"]
[SourceTitle "playchess.com"]
[Source "ChessBase"]
[SourceQuality "1"]
[TimeControl "5400+30"]

1. e4 {[%emt 0:00:00]} Nf6 {[%emt 0:00:18]} 2. Nc3 {[%emt 0:00:01]} d5 {[%emt 0:00:23]} 3. exd5 {[%emt 0:00:08]} Nxd5 {[%emt 0:00:05]} 4. Bc4 {[%emt 0:00:09]} c6 {[%emt 0:01:12]} 5. Qf3 {[%emt 0:00:34]} e6 {[%emt 0:00:17]} 6. d4 {[%emt 0:00:42]} Nb6 {[%emt 0:04:57]} 7. Bb3 {[%emt 0:01:20]} Qxd4 {[%emt 0:02:18]} 8. Nge2 {[%emt 0:00:06]} Qh4 {[%emt 0:07:02]} 9. Bf4 {[%emt 0:05:42]} Bb4 {[%emt 0:08:11]} 10. O-O-O {[%emt 0:03:33]} Nd5 {[%emt 0:24:06]} 11. g3 {[%emt 0:13:41]} Qe7 {[%emt 0:02:48]} 12. Bxd5 {[%emt 0:09:01]} exd5 {[%emt 0:02:10]} 13. Rxd5 {[%emt 0:02:20]} O-O {[%emt 0:07:20]} 14. Re5 {[%emt 0:09:14]} Be6 {[%emt 0:05:20]} 15. Nd4 {[%emt 0:05:12]} Nd7 {[%emt 0:00:35]} 16. Re2 {[%emt 0:02:22]} Qf6 {[%emt 0:05:28]} 17. Rd1 {[%emt 0:02:51]} Nb6 {[%emt 0:05:41]} 18. Nxe6 {[%emt 0:10:45]} fxe6 {[%emt 0:00:21]} 19. Ne4 {[%emt 0:00:30]} Qg6 {[%emt 0:02:19]} 20. Qb3 {[%emt 0:02:06]} Be7 {[%emt 0:01:10]} 21. Nc3 {[%emt 0:01:42]} Bg5 {[%emt 0:01:51]} 22. Bxg5 {[%emt 0:01:17]} Qxg5+ {[%emt 0:00:01]} 23. f4 {[%emt 0:00:08]} Qh5 {[%emt 0:02:29]} 24. Qxe6+ {[%emt 0:00:46]} Kh8 {[%emt 0:00:24]} 25. Rde1 {[%emt 0:00:15]} Rab8 {[%emt 0:04:59]} 26. h4 {[%emt 0:02:34]} Qf3 {[%emt 0:02:39]} 27. Qe3 {[%emt 0:02:23]} Qg4 {[%emt 0:00:10]} 28. b3 {[%emt 0:00:38]} h6 {[%emt 0:02:34]} 29. a4 {[%emt 0:00:25]} Qf5 {[%emt 0:03:47]} 30. Qe5 {[%emt 0:01:27]} Qg4 {[%emt 0:00:32]} 31. Re3 {[%emt 0:00:54]} a6 {[%emt 0:01:10]} 32. Qe6 {[%emt 0:02:36]} Qh5 {[%emt 0:00:28]} 33. Re5 {[%emt 0:00:58]} Qf3 {[%emt 0:00:09]} 34. R1e3 {[%emt 0:01:07]} Qf2 {[%emt 0:00:37]} 35. a5 {[%emt 0:01:16]} Nc8 {[%emt 0:00:57]} 36. Rd3 {[%emt 0:01:48]} Na7 {[%emt 0:00:23]} 37. Ne4 {[%emt 0:02:09]} Qe1+ {[%emt 0:00:45]} 38. Kb2 {[%emt 0:00:31]} Nb5 {[%emt 0:00:16]} 39. Nc3 {[%emt 0:01:42]} Qf2 {[%emt 0:00:13]} 40. Nxb5 {[%emt 0:01:34]} cxb5 {[%emt 0:00:20]} 41. Re2 {[%emt 0:00:45]} Qc5 {[%emt 0:00:32]} 42. Qe7 {[%emt 0:00:30]} Qc6 {[%emt 0:00:40]} 43. Rd7 {[%emt 0:00:24]} Qf6+ {[%emt 0:02:17]} 44. Qxf6 {[%emt 0:00:08]} Rxf6 {[%emt 0:00:01]} 45. h5 {[%emt 0:01:31]} b6 {[%emt 0:00:22]} 46. axb6 {[%emt 0:00:20]} Rfxb6 {[%emt 0:00:09]} 47. Ree7 {[%emt 0:00:27]} Rg8 {[%emt 0:00:18]} 48. f5 {[%emt 0:00:18]} Rc6 {[%emt 0:00:47]} 49. g4 {[%emt 0:01:09]} Rgc8 {[%emt 0:01:28]} 50. Re2 {[%emt 0:01:28]} b4 {[%emt 0:00:41]} 51. Red2 {[%emt 0:01:25]} Kh7 {[%emt 0:00:29]} 52. R7d6 {[%emt 0:00:23]} a5 {[%emt 0:00:57]} 53. R6d5 {[%emt 0:01:32]} Ra8 {[%emt 0:00:19]} 54. Rb5 {[%emt 0:00:32]} Kg8 {[%emt 0:00:33]} 55. Rd7 {[%emt 0:00:16]} Rac8 {[%emt 0:00:12]} 56. Rd2 {[%emt 0:00:17]} Ra8 {[%emt 0:00:03]} 57. Rb7 {[%emt 0:00:17]} Kh8 {[%emt 0:01:05]} 58. Rbd7 {[%emt 0:00:42]} Kh7 {[%emt 0:00:12]} 59. R2d6 {[%emt 0:00:39]} Rxd6 {[%emt 0:01:22]} 60. Rxd6 {[%emt 0:00:07]} Kg8 {[%emt 0:00:15]} 61. Rd5 {[%emt 0:00:58]} Kf7 {[%emt 0:00:23]} 62. Rd7+ {[%emt 0:00:48]} Kf6 {[%emt 0:00:37]} 63. Rd6+ {[%emt 0:00:11]} Kf7 {[%emt 0:00:05]} 64. Kc1 {[%emt 0:00:33]} Ra7 {[%emt 0:00:22]} 65. Kd2 {[%emt 0:00:16]} Ra8 {[%emt 0:01:13]} 66. Rc6 {[%emt 0:00:54]} Ra7 {[%emt 0:00:24]} 67. Ke3 {[%emt 0:00:38]} Rd7 {[%emt 0:00:48]} 68. Rc5 {[%emt 0:00:30]} Ra7 {[%emt 0:00:06]} 69. Kf4 {[%emt 0:00:26]} a4 {[%emt 0:00:49]} 70. bxa4 {[%emt 0:00:25]} Rxa4 {[%emt 0:00:01]} 71. Rc4 {[%emt 0:01:05]} Ra2 {[%emt 0:00:12]} 72. g5 {[%emt 0:00:41]} hxg5+ {[%emt 0:00:34]} 73. Kxg5 {[%emt 0:00:08]} Kf8 {[%emt 0:01:25]} 74. Rc6 {[%emt 0:00:42]} Ra5 {[%emt 0:00:09]} 75. Kg6 {[%emt 0:00:13]} Ra8 {[%emt 0:00:49]} 76. h6 {[%emt 0:00:58]} gxh6 {[%emt 0:00:08]} 77. f6 {[%emt 0:00:37]} h5 {[%emt 0:00:32]} 78. Rc7 {[%emt 0:00:24]} Kg8 {[%emt 0:00:45]} 79. Rg7+ {[%emt 0:00:10]} Kh8 {[%emt 0:00:35]} 80. Rh7+ {[%emt 0:00:06]} Kg8 {[%emt 0:00:03]} 81. f7+ {[%emt 0:00:05]} 1-0

[Event "ESP-ch Seniors 2017"]
[Site "Altea"]
[Date "2017.10.08"]
[Round "2"]
[White "Garcia Galeote, Lorenzo"]
[Black "Sabater Sanchez, Asensio"]
[Result "1-0"]
[ECO "A40"]
[WhiteElo "1998"]
[BlackElo "2149"]
[Annotator "ChessBase"]
[PlyCount "55"]
[EventDate "2017.??.??"]
[EventType "swiss"]
[EventCountry "ESP"]
[SourceTitle "playchess.com"]
[Source "ChessBase"]
[SourceQuality "1"]
[TimeControl "5400+30"]

1. d4 {[%emt 0:00:00]} e6 {[%emt 0:00:20]} 2. Nf3 {[%emt 0:00:22]} d5 {[%emt 0:01:39]} 3. e3 {[%emt 0:00:34]} c5 {[%emt 0:00:41]} 4. b3 {[%emt 0:00:30]} Nc6 {[%emt 0:00:24]} 5. Bb2 {[%emt 0:00:10]} Nf6 {[%emt 0:00:16]} 6. Bd3 {[%emt 0:00:23]} Bd6 {[%emt 0:01:33]} 7. Nbd2 {[%emt 0:00:25]} O-O {[%emt 0:01:03]} 8. O-O {[%emt 0:01:10]} Re8 {[%emt 0:02:07]} 9. Ne5 {[%emt 0:02:23]} Qc7 {[%emt 0:03:10]} 10. f4 {[%emt 0:00:32]} a6 {[%emt 0:02:35]} 11. Ndf3 {[%emt 0:05:19]} cxd4 {[%emt 0:01:39]} 12. exd4 {[%emt 0:00:45]} Nb4 {[%emt 0:03:25]} 13. Ng5 {[%emt 0:09:34]} Re7 {[%emt 0:04:20]} 14. c4 {[%emt 0:09:04]} Nxd3 {[%emt 0:03:18]} 15. Qxd3 {[%emt 0:00:19]} h6 {[%emt 0:06:02]} 16. c5 {[%emt 0:03:13]} hxg5 {[%emt 0:02:43]} 17. cxd6 {[%emt 0:00:51]} Qxd6 {[%emt 0:00:07]} 18. fxg5 {[%emt 0:00:34]} Ne4 {[%emt 0:01:31]} 19. a4 {[%emt 0:10:56]} Rc7 {[%emt 0:04:35]} 20. g6 {[%emt 0:03:31]} f5 {[%emt 0:12:44]} 21. Qh3 {[%emt 0:04:14]} Nf6 {[%emt 0:01:21]} 22. Rf4 {[%emt 0:02:53]} b5 {[%emt 0:11:04]} 23. axb5 {[%emt 0:02:38]} Bb7 {[%emt 0:06:19]} 24. Rh4 {[%emt 0:01:32]} Kf8 {[%emt 0:00:27]} 25. Rh8+ {[%emt 0:06:37]} Ke7 {[%emt 0:01:04]} 26. Rxa8 {[%emt 0:00:51]} Bxa8 27. Rxa6 {[%emt 0:01:32]} Qb4 {[%emt 0:01:12]} 28. Qe3 {[%emt 0:04:09]} 1-0

[Event "ESP-ch Seniors 2017"]
[Site "Altea"]
[Date "2017.10.08"]
[Round "2"]
[White "De Lucas Bello, Federico"]
[Black "Simon Padros, Emili"]
[Result "1/2-1/2"]
[ECO "C05"]
[WhiteElo "1988"]
[BlackElo "2153"]
[Annotator "ChessBase"]
[PlyCount "68"]
[EventDate "2017.??.??"]
[EventType "swiss"]
[EventCountry "ESP"]
[SourceTitle "playchess.com"]
[Source "ChessBase"]
[SourceQuality "1"]
[TimeControl "5400+30"]

1. e4 {[%emt 0:00:00]} e6 {[%emt 0:00:19]} 2. d4 {[%emt 0:01:07]} d5 {[%emt 0:00:15]} 3. Nd2 {[%emt 0:00:11]} Nf6 {[%emt 0:00:24]} 4. e5 {[%emt 0:00:28]} Nfd7 {[%emt 0:00:17]} 5. Bd3 {[%emt 0:00:12]} c5 {[%emt 0:00:20]} 6. c3 {[%emt 0:00:09]} Nc6 {[%emt 0:00:20]} 7. Ngf3 {[%emt 0:00:22]} cxd4 {[%emt 0:01:37]} 8. cxd4 {[%emt 0:00:15]} Nb6 {[%emt 0:00:41]} 9. O-O {[%emt 0:01:01]} Bd7 {[%emt 0:00:39]} 10. a3 {[%emt 0:06:05]} a5 {[%emt 0:01:11]} 11. Nb1 {[%emt 0:03:01]} Be7 {[%emt 0:04:37]} 12. Nc3 {[%emt 0:01:31]} O-O {[%emt 0:03:26]} 13. Bc2 {[%emt 0:02:47]} f5 {[%emt 0:09:33]} 14. exf6 {[%emt 0:01:08]} Bxf6 {[%emt 0:00:25]} 15. Qd3 {[%emt 0:02:28]} g6 {[%emt 0:01:29]} 16. Bh6 {[%emt 0:01:25]} Bg7 {[%emt 0:12:31]} 17. Bxg7 {[%emt 0:01:52]} Kxg7 {[%emt 0:00:13]} 18. Ne2 {[%emt 0:04:04]} Nc4 {[%emt 0:07:24]} 19. b3 {[%emt 0:01:40]} Nd6 {[%emt 0:00:22]} 20. Ng3 {[%emt 0:03:10]} Kh8 {[%emt 0:04:47]} 21. Qd2 {[%emt 0:02:20]} Qf6 {[%emt 0:05:00]} 22. Rfe1 {[%emt 0:07:44]} Qf4 {[%emt 0:03:33]} 23. Re3 {[%emt 0:05:55]} a4 {[%emt 0:06:09]} 24. Ne2 {[%emt 0:05:36]} Qf6 {[%emt 0:04:29]} 25. Nc3 {[%emt 0:04:15]} axb3 {[%emt 0:04:54]} 26. Bxb3 {[%emt 0:00:31]} Na5 {[%emt 0:04:02]} 27. Qd1 {[%emt 0:02:15]} Nac4 {[%emt 0:01:52]} 28. Bxc4 {[%emt 0:01:49]} Nxc4 {[%emt 0:00:25]} 29. Re2 {[%emt 0:00:32]} Qf4 {[%emt 0:06:42]} 30. a4 {[%emt 0:03:33]} Rfc8 {[%emt 0:03:48]} 31. Qb3 {[%emt 0:01:40]} b6 {[%emt 0:01:03]} 32. h3 {[%emt 0:00:20]} Qd6 {[%emt 0:03:10]} 33. Ng5 {[%emt 0:05:09]} Qf4 {[%emt 0:03:26]} 34. Nf3 {[%emt 0:00:42]} Qf8 {[%emt 0:02:57]} 1/2-1/2